[Event "Titled Tuesday Blitz July 26 Late 2022"]
[White "Krishnan, Varun"]
[Black "Araujo Sanchez, Josue"]
[WhiteFideId "5054508"]
[BlackFideId "6416896"]
[WhiteElo "2721"]
[BlackElo "2358"]
[Result "0-1"]
[Round "05"]
[TimeControl "180+1"]
[Date "2022.07.26"]
[WhiteClock "0:00:20"]
[BlackClock "0:00:18"]

1. d4 {[%clk 0:03:00]}  Nf6 {[%clk 0:02:59]} 2. c4 {[%clk 0:02:55]}  e6 {[%clk 0:02:56]} 3. Nf3 {[%clk 0:02:54]}  Bb4+ {[%clk 0:02:45]} 4. Nbd2 {[%clk 0:02:50]}  O-O {[%clk 0:02:45]} 5. g3 {[%clk 0:02:49]}  b6 {[%clk 0:02:33]} 6. Bg2 {[%clk 0:02:49]}  Bb7 {[%clk 0:01:56]} 7. O-O {[%clk 0:02:48]}  c5 {[%clk 0:01:49]} 8. a3 {[%clk 0:02:29]}  Bxd2 {[%clk 0:01:44]} 9. Qxd2 {[%clk 0:02:30]}  cxd4 {[%clk 0:01:37]} 10. Qxd4 {[%clk 0:02:19]}  Nc6 {[%clk 0:01:31]} 11. Qh4 {[%clk 0:02:18]}  d5 {[%clk 0:01:21]} 12. b4 {[%clk 0:02:07]}  dxc4 {[%clk 0:01:08]} 13. Qxc4 {[%clk 0:02:06]}  Rc8 {[%clk 0:01:03]} 14. Qh4 {[%clk 0:01:47]}  Ne7 {[%clk 0:00:55]} 15. Bb2 {[%clk 0:01:31]}  Ng6 {[%clk 0:00:52]} 16. Qd4 {[%clk 0:01:10]}  Qxd4 {[%clk 0:00:42]} 17. Nxd4 {[%clk 0:01:11]}  Bxg2 {[%clk 0:00:35]} 18. Kxg2 {[%clk 0:01:12]}  Rfd8 {[%clk 0:00:28]} 19. Rac1 {[%clk 0:01:08]}  a6 {[%clk 0:00:25]} 20. Rfd1 {[%clk 0:00:44]}  Kf8 {[%clk 0:00:22]} 21. Nf3 {[%clk 0:00:36]}  Ke7 {[%clk 0:00:21]} 22. Bd4 {[%clk 0:00:34]}  b5 {[%clk 0:00:18]} 23. Rxc8 {[%clk 0:00:26]}  Rxc8 {[%clk 0:00:12]} 24. Ne5 {[%clk 0:00:20]}  Nxe5 {[%clk 0:00:09]} 25. Bxe5 {[%clk 0:00:21]}  Nd7 {[%clk 0:00:09]} 26. Bxg7 {[%clk 0:00:19]}  Rc2 {[%clk 0:00:08]} 27. e3 {[%clk 0:00:17]}  Ra2 {[%clk 0:00:07]} 28. Rd3 {[%clk 0:00:16]}  f6 {[%clk 0:00:08]} 29. Bh6 {[%clk 0:00:15]}  Ne5 {[%clk 0:00:07]} 30. Rc3 {[%clk 0:00:14]}  Ng4 {[%clk 0:00:07]} 31. Rc7+ {[%clk 0:00:08]}  Kd6 {[%clk 0:00:07]} 32. Rxh7 {[%clk 0:00:08]}  Rxf2+ {[%clk 0:00:06]} 33. Kh3 {[%clk 0:00:07]}  f5 {[%clk 0:00:06]} 34. Bf8+ {[%clk 0:00:06]}  Kd5 {[%clk 0:00:06]} 35. Rd7+ {[%clk 0:00:06]}  Ke4 {[%clk 0:00:06]} 36. Kh4 {[%clk 0:00:07]}  Rxh2+ {[%clk 0:00:06]} 37. Kg5 {[%clk 0:00:07]}  Nxe3 {[%clk 0:00:05]} 38. Rd6 {[%clk 0:00:06]}  e5 {[%clk 0:00:05]} 39. Rxa6 {[%clk 0:00:06]}  Rg2 {[%clk 0:00:05]} 40. Re6 {[%clk 0:00:05]}  Rxg3+ {[%clk 0:00:04]} 41. Kf6 {[%clk 0:00:05]}  Nd5+ {[%clk 0:00:04]} 42. Kf7 {[%clk 0:00:04]}  f4 {[%clk 0:00:04]} 43. Bg7 {[%clk 0:00:04]}  Rg5 {[%clk 0:00:04]} 44. Bf6 {[%clk 0:00:01]}  Rf5 {[%clk 0:00:02]} 45. Rxe5+ {[%clk 0:00:02]}  Rxe5 {[%clk 0:00:01]} 46. Bxe5 {[%clk 0:00:02]}  Kxe5 {[%clk 0:00:02]} 47. Kg6 {[%clk 0:00:02]}  Nb6 {[%clk 0:00:02]} 48. Kg5 {[%clk 0:00:03]}  Na4 {[%clk 0:00:02]} 49. Kg4 {[%clk 0:00:04]}  Ke4 {[%clk 0:00:03]} 50. Kh3 {[%clk 0:00:04]}  Ke3 {[%clk 0:00:04]} 51. Kh2 {[%clk 0:00:04]}  f3 {[%clk 0:00:05]} 52. Kg1 {[%clk 0:00:05]}  f2+ {[%clk 0:00:05]} 53. Kf1 {[%clk 0:00:06]}  Kd3 {[%clk 0:00:05]} 54. Kxf2 {[%clk 0:00:06]}  Kc3 {[%clk 0:00:06]} 55. Ke1 {[%clk 0:00:07]}  Kb3 {[%clk 0:00:07]} 56. Kd2 {[%clk 0:00:08]}  Kxa3 {[%clk 0:00:07]} 57. Kd3 {[%clk 0:00:09]}  Kxb4 {[%clk 0:00:07]} 58. Kd4 {[%clk 0:00:09]}  Kb3 {[%clk 0:00:07]} 59. Kd3 {[%clk 0:00:10]}  b4 {[%clk 0:00:08]} 60. Kd2 {[%clk 0:00:11]}  Ka2 {[%clk 0:00:08]} 61. Kc1 {[%clk 0:00:12]}  b3 {[%clk 0:00:09]} 62. Kd2 {[%clk 0:00:12]}  b2 {[%clk 0:00:10]} 63. Kd3 {[%clk 0:00:13]}  b1=Q+ {[%clk 0:00:10]} 64. Kc4 {[%clk 0:00:14]}  Qb3+ {[%clk 0:00:11]} 65. Kd4 {[%clk 0:00:14]}  Qc3+ {[%clk 0:00:12]} 66. Ke4 {[%clk 0:00:15]}  Qd2 {[%clk 0:00:12]} 67. Ke5 {[%clk 0:00:15]}  Nc3 {[%clk 0:00:12]} 68. Ke6 {[%clk 0:00:16]}  Qd5+ {[%clk 0:00:12]} 69. Ke7 {[%clk 0:00:17]}  Ne4 {[%clk 0:00:13]} 70. Ke8 {[%clk 0:00:17]}  Qd6 {[%clk 0:00:14]} 71. Kf7 {[%clk 0:00:17]}  Qc7+ {[%clk 0:00:15]} 72. Kf8 {[%clk 0:00:16]}  Nd6 {[%clk 0:00:15]} 73. Kg8 {[%clk 0:00:17]}  Qf7+ {[%clk 0:00:16]} 74. Kh8 {[%clk 0:00:18]}  Qe7 {[%clk 0:00:17]} 75. Kg8 {[%clk 0:00:18]}  Kb3 {[%clk 0:00:17]} 76. Kh8 {[%clk 0:00:19]}  Nf5 {[%clk 0:00:18]} 77. Kg8 {[%clk 0:00:20]}  Qg7# {[%clk 0:00:18]} 0-1


[Site "https://www.chess.com"]

[Event "Titled Tuesday Blitz July 26 Late 2022"]
[White "Leiva, Gianmarco"]
[Black "Federzoni, Enzo"]
[WhiteFideId "3804399"]
[BlackFideId "2173301"]
[WhiteElo "2323"]
[BlackElo "1949"]
[Result "1-0"]
[Round "05"]
[TimeControl "180+1"]
[Date "2022.07.26"]
[WhiteClock "0:00:05"]
[BlackClock "0:00:01"]

1. Nf3 {[%clk 0:02:59]}  c5 {[%clk 0:02:59]} 2. e4 {[%clk 0:02:59]}  d6 {[%clk 0:02:59]} 3. Bc4 {[%clk 0:02:59]}  e6 {[%clk 0:02:59]} 4. O-O {[%clk 0:02:59]}  Nf6 {[%clk 0:02:58]} 5. d3 {[%clk 0:02:58]}  Nc6 {[%clk 0:02:58]} 6. Bb3 {[%clk 0:02:58]}  Be7 {[%clk 0:02:59]} 7. c3 {[%clk 0:02:58]}  O-O {[%clk 0:02:59]} 8. Re1 {[%clk 0:02:55]}  e5 {[%clk 0:02:50]} 9. Nbd2 {[%clk 0:02:53]}  Be6 {[%clk 0:02:50]} 10. Nf1 {[%clk 0:02:43]}  Qc7 {[%clk 0:02:45]} 11. Bg5 {[%clk 0:02:42]}  h6 {[%clk 0:02:42]} 12. Bxf6 {[%clk 0:02:42]}  Bxf6 {[%clk 0:02:43]} 13. Ne3 {[%clk 0:02:42]}  Ne7 {[%clk 0:02:35]} 14. Nd2 {[%clk 0:02:40]}  Rad8 {[%clk 0:02:32]} 15. Qf3 {[%clk 0:02:39]}  b5 {[%clk 0:02:12]} 16. a4 {[%clk 0:02:36]}  Bxb3 {[%clk 0:02:06]} 17. Nxb3 {[%clk 0:02:36]}  c4 {[%clk 0:01:58]} 18. dxc4 {[%clk 0:02:32]}  bxc4 {[%clk 0:01:59]} 19. Nd2 {[%clk 0:02:33]}  Bg5 {[%clk 0:01:54]} 20. Ndxc4 {[%clk 0:02:33]}  Ng6 {[%clk 0:01:43]} 21. g3 {[%clk 0:02:31]}  Qc6 {[%clk 0:01:35]} 22. h4 {[%clk 0:02:27]}  Bxe3 {[%clk 0:01:34]} 23. Nxe3 {[%clk 0:02:26]}  Ne7 {[%clk 0:01:33]} 24. Kg2 {[%clk 0:01:53]}  Qb6 {[%clk 0:01:30]} 25. b4 {[%clk 0:01:49]}  Qc6 {[%clk 0:01:30]} 26. c4 {[%clk 0:01:42]}  f5 {[%clk 0:01:28]} 27. exf5 {[%clk 0:01:37]}  e4 {[%clk 0:01:22]} 28. Qg4 {[%clk 0:01:31]}  d5 {[%clk 0:01:21]} 29. cxd5 {[%clk 0:01:29]}  Nxd5 {[%clk 0:01:20]} 30. b5 {[%clk 0:01:03]}  Nxe3+ {[%clk 0:01:15]} 31. Rxe3 {[%clk 0:01:02]}  Qc5 {[%clk 0:01:10]} 32. Qxe4 {[%clk 0:00:56]}  Rxf5 {[%clk 0:01:09]} 33. Qe7 {[%clk 0:00:45]}  Qb6 {[%clk 0:00:27]} 34. a5 {[%clk 0:00:27]}  Qb8 {[%clk 0:00:18]} 35. Qe6+ {[%clk 0:00:25]}  Rf7 {[%clk 0:00:18]} 36. b6 {[%clk 0:00:18]}  axb6 {[%clk 0:00:11]} 37. axb6 {[%clk 0:00:18]}  Rd6 {[%clk 0:00:09]} 38. Qe8+ {[%clk 0:00:17]}  Qxe8 {[%clk 0:00:09]} 39. Rxe8+ {[%clk 0:00:18]}  Kh7 {[%clk 0:00:10]} 40. Rb8 {[%clk 0:00:16]}  Rd2 {[%clk 0:00:08]} 41. b7 {[%clk 0:00:08]}  Rfxf2+ {[%clk 0:00:06]} 42. Kh3 {[%clk 0:00:08]}  h5 {[%clk 0:00:04]} 43. Rh8+ {[%clk 0:00:06]}  Kg6 {[%clk 0:00:05]} 44. Ra6+ {[%clk 0:00:04]}  Kf5 {[%clk 0:00:05]} 45. Rxh5+ {[%clk 0:00:05]}  Ke4 {[%clk 0:00:01]} 46. Ra4+ {[%clk 0:00:05]}  Ke3 {[%clk 0:00:01]} 47. Re5+ {[%clk 0:00:05]}  Kf3 {[%clk 0:00:01]} 48. Rf5+ {[%clk 0:00:05]}  Ke2 {[%clk 0:00:01]} 49. Rxf2+ {[%clk 0:00:05]} 1-0


[Site "https://www.chess.com"]

[Event "Titled Tuesday Blitz July 26 Late 2022"]
[White "Makarian, Rudik"]
[Black "Medeiros Jr, Francisco De Assis"]
[WhiteFideId "44105681"]
[BlackFideId "2114267"]
[WhiteElo "2403"]
[BlackElo "2020"]
[Result "1-0"]
[Round "05"]
[TimeControl "180+1"]
[Date "2022.07.26"]
[WhiteClock "0:00:21"]
[BlackClock "0:00:05"]

1. d3 {[%clk 0:02:59]}  d5 {[%clk 0:02:58]} 2. f4 {[%clk 0:02:57]}  g6 {[%clk 0:02:56]} 3. Nf3 {[%clk 0:02:58]}  Nh6 {[%clk 0:02:57]} 4. g3 {[%clk 0:02:58]}  Bg7 {[%clk 0:02:55]} 5. Bg2 {[%clk 0:02:57]}  d4 {[%clk 0:02:47]} 6. O-O {[%clk 0:02:57]}  Nf5 {[%clk 0:02:31]} 7. c3 {[%clk 0:02:56]}  c5 {[%clk 0:02:27]} 8. e4 {[%clk 0:02:55]}  dxe3 {[%clk 0:02:24]} 9. Qe2 {[%clk 0:02:54]}  Nc6 {[%clk 0:02:22]} 10. Bxe3 {[%clk 0:02:52]}  Nxe3 {[%clk 0:02:20]} 11. Qxe3 {[%clk 0:02:53]}  Bf5 {[%clk 0:02:15]} 12. Rd1 {[%clk 0:02:35]}  Qb6 {[%clk 0:02:15]} 13. Rd2 {[%clk 0:02:35]}  Rd8 {[%clk 0:02:10]} 14. Na3 {[%clk 0:02:33]}  Bxd3 {[%clk 0:01:41]} 15. Rad1 {[%clk 0:02:32]}  Ba6 {[%clk 0:01:39]} 16. Ne5 {[%clk 0:02:23]}  Rxd2 {[%clk 0:01:36]} 17. Bxc6+ {[%clk 0:02:17]}  bxc6 {[%clk 0:01:35]} 18. Rxd2 {[%clk 0:02:12]}  Bxe5 {[%clk 0:01:34]} 19. fxe5 {[%clk 0:02:03]}  O-O {[%clk 0:01:29]} 20. c4 {[%clk 0:01:57]}  Rd8 {[%clk 0:01:22]} 21. b3 {[%clk 0:01:49]}  Rd4 {[%clk 0:01:12]} 22. Nc2 {[%clk 0:01:47]}  Rxd2 {[%clk 0:00:44]} 23. Qxd2 {[%clk 0:01:48]}  Bc8 {[%clk 0:00:45]} 24. Ne3 {[%clk 0:01:28]}  Kg7 {[%clk 0:00:39]} 25. Qc3 {[%clk 0:01:28]}  Be6 {[%clk 0:00:35]} 26. Kf2 {[%clk 0:01:26]}  a5 {[%clk 0:00:33]} 27. Ng2 {[%clk 0:01:22]}  Qb4 {[%clk 0:00:30]} 28. Qxb4 {[%clk 0:01:22]}  axb4 {[%clk 0:00:27]} 29. Ke3 {[%clk 0:01:17]}  Bf5 {[%clk 0:00:27]} 30. Kd2 {[%clk 0:01:16]}  Bb1 {[%clk 0:00:25]} 31. Nf4 {[%clk 0:01:03]}  g5 {[%clk 0:00:20]} 32. Ng2 {[%clk 0:00:53]}  f5 {[%clk 0:00:19]} 33. h4 {[%clk 0:00:37]}  h6 {[%clk 0:00:19]} 34. Ne3 {[%clk 0:00:36]}  Kf7 {[%clk 0:00:16]} 35. Kc1 {[%clk 0:00:27]}  Be4 {[%clk 0:00:14]} 36. hxg5 {[%clk 0:00:22]}  hxg5 {[%clk 0:00:14]} 37. g4 {[%clk 0:00:20]}  f4 {[%clk 0:00:12]} 38. Nf5 {[%clk 0:00:20]}  Ke6 {[%clk 0:00:08]} 39. Nh6 {[%clk 0:00:20]}  Kxe5 {[%clk 0:00:08]} 40. Nf7+ {[%clk 0:00:20]}  Kd4 {[%clk 0:00:08]} 41. Nxg5 {[%clk 0:00:21]}  Bd3 {[%clk 0:00:08]} 42. Kd2 {[%clk 0:00:19]}  e5 {[%clk 0:00:08]} 43. Nf3+ {[%clk 0:00:20]}  Ke4 {[%clk 0:00:08]} 44. Nxe5 {[%clk 0:00:20]}  Kxe5 {[%clk 0:00:08]} 45. Kxd3 {[%clk 0:00:20]}  Kf6 {[%clk 0:00:07]} 46. Ke4 {[%clk 0:00:21]}  Kg5 {[%clk 0:00:05]} 47. Kf3 {[%clk 0:00:21]} 1-0


[Site "https://www.chess.com"]

[Event "Titled Tuesday Blitz July 26 Late 2022"]
[White "Maksimovic, Bojan"]
[Black "Csonka, Balazs"]
[WhiteFideId "14408120"]
[BlackFideId "742910"]
[WhiteElo "2453"]
[BlackElo "2404"]
[Result "0-1"]
[Round "05"]
[TimeControl "180+1"]
[Date "2022.07.26"]
[WhiteClock "0:00:01"]
[BlackClock "0:00:03"]

1. e4 {[%clk 0:03:00]}  c5 {[%clk 0:02:57]} 2. Nc3 {[%clk 0:03:00]}  Nc6 {[%clk 0:02:56]} 3. Bb5 {[%clk 0:03:00]}  Nd4 {[%clk 0:02:55]} 4. Nf3 {[%clk 0:03:00]}  e6 {[%clk 0:02:47]} 5. O-O {[%clk 0:03:00]}  a6 {[%clk 0:02:40]} 6. Bd3 {[%clk 0:02:59]}  Ne7 {[%clk 0:02:39]} 7. Nxd4 {[%clk 0:02:58]}  cxd4 {[%clk 0:02:38]} 8. Ne2 {[%clk 0:02:58]}  Nc6 {[%clk 0:02:39]} 9. c3 {[%clk 0:02:48]}  Bc5 {[%clk 0:02:27]} 10. Ng3 {[%clk 0:02:33]}  O-O {[%clk 0:02:22]} 11. Be2 {[%clk 0:02:29]}  d5 {[%clk 0:02:11]} 12. exd5 {[%clk 0:02:21]}  exd5 {[%clk 0:02:12]} 13. d3 {[%clk 0:02:16]}  Re8 {[%clk 0:01:50]} 14. c4 {[%clk 0:02:10]}  Be6 {[%clk 0:01:17]} 15. cxd5 {[%clk 0:02:07]}  Bxd5 {[%clk 0:01:16]} 16. Bf3 {[%clk 0:02:07]}  Ne5 {[%clk 0:01:06]} 17. Bxd5 {[%clk 0:02:04]}  Qxd5 {[%clk 0:01:07]} 18. Bf4 {[%clk 0:01:53]}  Ng6 {[%clk 0:01:06]} 19. Qd2 {[%clk 0:01:44]}  Nh4 {[%clk 0:00:38]} 20. f3 {[%clk 0:01:24]}  h6 {[%clk 0:00:34]} 21. Ne4 {[%clk 0:01:21]}  Be7 {[%clk 0:00:22]} 22. Rac1 {[%clk 0:01:10]}  Ng6 {[%clk 0:00:21]} 23. Rce1 {[%clk 0:00:20]}  f5 {[%clk 0:00:21]} 24. Ng3 {[%clk 0:00:19]}  Kh7 {[%clk 0:00:16]} 25. b3 {[%clk 0:00:18]}  a5 {[%clk 0:00:13]} 26. Nh5 {[%clk 0:00:18]}  Bb4 {[%clk 0:00:13]} 27. Qc1 {[%clk 0:00:06]}  Bxe1 {[%clk 0:00:11]} 28. Bxh6 {[%clk 0:00:06]}  f4 {[%clk 0:00:07]} 29. Bxf4 {[%clk 0:00:03]}  Qxh5 {[%clk 0:00:06]} 30. Rxe1 {[%clk 0:00:02]}  Rxe1+ {[%clk 0:00:07]} 31. Qxe1 {[%clk 0:00:02]}  Nxf4 {[%clk 0:00:07]} 32. Qe4+ {[%clk 0:00:03]}  Ng6 {[%clk 0:00:08]} 33. Qxb7 {[%clk 0:00:03]}  Re8 {[%clk 0:00:08]} 34. g3 {[%clk 0:00:02]}  Re1+ {[%clk 0:00:07]} 35. Kf2 {[%clk 0:00:02]}  Qe5 {[%clk 0:00:04]} 36. Kg2 {[%clk 0:00:01]}  Qe2+ {[%clk 0:00:04]} 37. Kh3 {[%clk 0:00:01]}  Rh1 {[%clk 0:00:04]} 38. Kg4 {[%clk 0:00:01]}  Qe6+ {[%clk 0:00:04]} 39. Kg5 {[%clk 0:00:01]}  Qe5+ {[%clk 0:00:04]} 40. Kg4 {[%clk 0:00:01]}  Rxh2 {[%clk 0:00:04]} 41. Qe7 {[%clk 0:00:01]}  Qh5# {[%clk 0:00:03]} 0-1


[Site "https://www.chess.com"]

[Event "Titled Tuesday Blitz July 26 Late 2022"]
[White "Manelyuk, Daniil"]
[Black "Ardila, Oscar Humberto"]
[WhiteFideId "44173920"]
[BlackFideId "4404742"]
[WhiteElo "2209"]
[BlackElo "1956"]
[Result "0-1"]
[Round "05"]
[TimeControl "180+1"]
[Date "2022.07.27"]
[WhiteClock "0:00:05"]
[BlackClock "0:00:32"]

1. e4 {[%clk 0:03:00]}  e5 {[%clk 0:02:59]} 2. Nf3 {[%clk 0:03:00]}  Nf6 {[%clk 0:03:00]} 3. Nxe5 {[%clk 0:02:58]}  d6 {[%clk 0:03:00]} 4. Nf3 {[%clk 0:02:54]}  Nxe4 {[%clk 0:03:00]} 5. d4 {[%clk 0:02:44]}  Be7 {[%clk 0:03:00]} 6. Bd3 {[%clk 0:02:43]}  Nf6 {[%clk 0:03:00]} 7. O-O {[%clk 0:02:42]}  O-O {[%clk 0:03:01]} 8. Re1 {[%clk 0:02:40]}  Bg4 {[%clk 0:03:01]} 9. h3 {[%clk 0:02:39]}  Bh5 {[%clk 0:03:00]} 10. g4 {[%clk 0:02:40]}  Bg6 {[%clk 0:03:00]} 11. Nc3 {[%clk 0:02:38]}  Nbd7 {[%clk 0:02:59]} 12. Bf4 {[%clk 0:02:38]}  Re8 {[%clk 0:02:58]} 13. Bg3 {[%clk 0:02:37]}  Nb6 {[%clk 0:02:55]} 14. Bxg6 {[%clk 0:02:31]}  hxg6 {[%clk 0:02:55]} 15. Qd3 {[%clk 0:02:31]}  Nbd5 {[%clk 0:02:53]} 16. Nxd5 {[%clk 0:02:30]}  Nxd5 {[%clk 0:02:53]} 17. c3 {[%clk 0:02:31]}  Qd7 {[%clk 0:02:51]} 18. c4 {[%clk 0:02:27]}  Nf6 {[%clk 0:02:47]} 19. d5 {[%clk 0:02:28]}  Bf8 {[%clk 0:02:44]} 20. Nd4 {[%clk 0:02:22]}  Rxe1+ {[%clk 0:02:43]} 21. Rxe1 {[%clk 0:02:22]}  Re8 {[%clk 0:02:38]} 22. Rxe8 {[%clk 0:02:22]}  Qxe8 {[%clk 0:02:38]} 23. f3 {[%clk 0:02:22]}  a6 {[%clk 0:02:36]} 24. Kf2 {[%clk 0:02:21]}  Nd7 {[%clk 0:02:35]} 25. b4 {[%clk 0:02:19]}  Be7 {[%clk 0:02:32]} 26. Qe4 {[%clk 0:02:17]}  Kf8 {[%clk 0:02:31]} 27. a4 {[%clk 0:02:15]}  Bf6 {[%clk 0:02:30]} 28. Qxe8+ {[%clk 0:02:13]}  Kxe8 {[%clk 0:02:31]} 29. Ke3 {[%clk 0:02:12]}  Nb6 {[%clk 0:02:16]} 30. Kd3 {[%clk 0:02:02]}  Nxa4 {[%clk 0:02:13]} 31. f4 {[%clk 0:01:58]}  Nb6 {[%clk 0:02:09]} 32. g5 {[%clk 0:01:58]}  Bxd4 {[%clk 0:02:08]} 33. Kxd4 {[%clk 0:01:58]}  Ke7 {[%clk 0:02:09]} 34. c5 {[%clk 0:01:51]}  Nd7 {[%clk 0:02:08]} 35. Bf2 {[%clk 0:01:47]}  f6 {[%clk 0:02:08]} 36. h4 {[%clk 0:01:46]}  b6 {[%clk 0:02:01]} 37. c6 {[%clk 0:01:44]}  Nf8 {[%clk 0:01:53]} 38. Kc4 {[%clk 0:01:40]}  Kd8 {[%clk 0:01:50]} 39. Bd4 {[%clk 0:01:37]}  Nh7 {[%clk 0:01:48]} 40. Kd3 {[%clk 0:01:34]}  b5 {[%clk 0:01:28]} 41. h5 {[%clk 0:01:26]}  gxh5 {[%clk 0:01:24]} 42. g6 {[%clk 0:01:26]}  Nf8 {[%clk 0:01:22]} 43. Bxf6+ {[%clk 0:01:26]}  Ke8 {[%clk 0:01:19]} 44. Bxg7 {[%clk 0:01:17]}  Nxg6 {[%clk 0:01:19]} 45. Ke4 {[%clk 0:01:16]}  Kf7 {[%clk 0:01:18]} 46. Bd4 {[%clk 0:01:13]}  Ne7 {[%clk 0:01:04]} 47. f5 {[%clk 0:01:12]}  h4 {[%clk 0:01:01]} 48. f6 {[%clk 0:01:10]}  Ng8 {[%clk 0:00:58]} 49. Kf5 {[%clk 0:00:32]}  h3 {[%clk 0:00:58]} 50. Be5 {[%clk 0:00:25]}  Nxf6 {[%clk 0:00:51]} 51. Bxd6 {[%clk 0:00:21]}  Nxd5 {[%clk 0:00:50]} 52. Bh2 {[%clk 0:00:18]}  Nxb4 {[%clk 0:00:41]} 53. Bxc7 {[%clk 0:00:17]}  Nxc6 {[%clk 0:00:41]} 54. Ke4 {[%clk 0:00:15]}  Ke6 {[%clk 0:00:41]} 55. Kd3 {[%clk 0:00:14]}  Kd5 {[%clk 0:00:41]} 56. Kc3 {[%clk 0:00:14]}  a5 {[%clk 0:00:41]} 57. Bg3 {[%clk 0:00:13]}  b4+ {[%clk 0:00:41]} 58. Kb3 {[%clk 0:00:14]}  Kc5 {[%clk 0:00:41]} 59. Ka4 {[%clk 0:00:14]}  Kb6 {[%clk 0:00:40]} 60. Bf2+ {[%clk 0:00:12]}  Ka6 {[%clk 0:00:40]} 61. Bg3 {[%clk 0:00:12]}  Nd4 {[%clk 0:00:36]} 62. Bc7 {[%clk 0:00:09]}  Nf3 {[%clk 0:00:34]} 63. Bh2 {[%clk 0:00:05]}  Nxh2 {[%clk 0:00:32]} 0-1


[Site "https://www.chess.com"]

[Event "Titled Tuesday Blitz July 26 Late 2022"]
[White "Manukian, Artak"]
[Black "Rastbod, Ali"]
[WhiteFideId "13301373"]
[BlackFideId "12567477"]
[WhiteElo "2355"]
[BlackElo "2135"]
[Result "0-1"]
[Round "05"]
[TimeControl "180+1"]
[Date "2022.07.27"]
[WhiteClock "0:00:01"]
[BlackClock "0:01:46"]

1. e4 {[%clk 0:03:00]}  Nc6 {[%clk 0:02:58]} 2. Nf3 {[%clk 0:03:00]}  g6 {[%clk 0:02:58]} 3. d4 {[%clk 0:03:00]}  Bg7 {[%clk 0:02:59]} 4. d5 {[%clk 0:02:59]}  Nb8 {[%clk 0:02:59]} 5. c4 {[%clk 0:02:59]}  d6 {[%clk 0:02:59]} 6. Nc3 {[%clk 0:02:59]}  Nf6 {[%clk 0:03:00]} 7. Bd3 {[%clk 0:02:57]}  O-O {[%clk 0:03:00]} 8. h3 {[%clk 0:02:52]}  c6 {[%clk 0:03:00]} 9. O-O {[%clk 0:02:52]}  Na6 {[%clk 0:02:58]} 10. Re1 {[%clk 0:02:50]}  Nc5 {[%clk 0:02:59]} 11. Bc2 {[%clk 0:02:47]}  a5 {[%clk 0:02:59]} 12. Bg5 {[%clk 0:02:36]}  Qb6 {[%clk 0:02:56]} 13. Rb1 {[%clk 0:02:35]}  Qb4 {[%clk 0:02:53]} 14. Qe2 {[%clk 0:02:11]}  a4 {[%clk 0:02:44]} 15. Bd2 {[%clk 0:01:58]}  Qb6 {[%clk 0:02:43]} 16. Be3 {[%clk 0:01:51]}  Qa5 {[%clk 0:02:42]} 17. Bd2 {[%clk 0:01:50]}  Qa6 {[%clk 0:02:41]} 18. Be3 {[%clk 0:01:29]}  Nfd7 {[%clk 0:02:35]} 19. Bd4 {[%clk 0:01:28]}  Ne5 {[%clk 0:02:31]} 20. Nxe5 {[%clk 0:01:27]}  Bxe5 {[%clk 0:02:32]} 21. Bxe5 {[%clk 0:01:27]}  dxe5 {[%clk 0:02:33]} 22. Nd1 {[%clk 0:01:11]}  Qa5 {[%clk 0:02:23]} 23. Ne3 {[%clk 0:01:09]}  Bd7 {[%clk 0:02:16]} 24. g4 {[%clk 0:00:56]}  b5 {[%clk 0:02:14]} 25. cxb5 {[%clk 0:00:54]}  cxb5 {[%clk 0:02:13]} 26. h4 {[%clk 0:00:47]}  Nb7 {[%clk 0:02:13]} 27. h5 {[%clk 0:00:46]}  Nd6 {[%clk 0:02:13]} 28. hxg6 {[%clk 0:00:45]}  fxg6 {[%clk 0:02:14]} 29. Kg2 {[%clk 0:00:44]}  Rf4 {[%clk 0:02:13]} 30. f3 {[%clk 0:00:42]}  Raf8 {[%clk 0:02:10]} 31. Rf1 {[%clk 0:00:42]}  Qb6 {[%clk 0:02:10]} 32. Rf2 {[%clk 0:00:40]}  b4 {[%clk 0:02:10]} 33. Rh1 {[%clk 0:00:34]}  Bb5 {[%clk 0:02:10]} 34. Bd3 {[%clk 0:00:34]}  Bxd3 {[%clk 0:02:07]} 35. Qxd3 {[%clk 0:00:35]}  Nxe4 {[%clk 0:02:08]} 36. Rff1 {[%clk 0:00:28]}  Ng5 {[%clk 0:02:06]} 37. Nc4 {[%clk 0:00:25]}  Qd4 {[%clk 0:02:02]} 38. Qxd4 {[%clk 0:00:24]}  Rxd4 {[%clk 0:02:03]} 39. Nxe5 {[%clk 0:00:23]}  Rxd5 {[%clk 0:02:04]} 40. Nc6 {[%clk 0:00:23]}  Rd2+ {[%clk 0:02:01]} 41. Kg3 {[%clk 0:00:21]}  Rd3 {[%clk 0:01:59]} 42. Nxe7+ {[%clk 0:00:17]}  Kg7 {[%clk 0:01:59]} 43. Nc6 {[%clk 0:00:16]}  Rfxf3+ {[%clk 0:01:57]} 44. Rxf3 {[%clk 0:00:17]}  Rxf3+ {[%clk 0:01:58]} 45. Kg2 {[%clk 0:00:18]}  b3 {[%clk 0:01:58]} 46. a3 {[%clk 0:00:15]}  Rd3 {[%clk 0:01:56]} 47. Rf1 {[%clk 0:00:15]}  Ne4 {[%clk 0:01:53]} 48. Re1 {[%clk 0:00:04]}  Rd2+ {[%clk 0:01:49]} 49. Kf3 {[%clk 0:00:04]}  Ng5+ {[%clk 0:01:50]} 50. Kf4 {[%clk 0:00:04]}  Kf6 {[%clk 0:01:49]} 51. Na5 {[%clk 0:00:01]}  Rf2+ {[%clk 0:01:46]} 0-1


[Site "https://www.chess.com"]